[Event "4th Memorial Warakomska-B 2020"]
[Site "Suwalki"]
[Date "2020.08.12"]
[Round "8.14"]
[White "Gladyszewska, Kinga"]
[Black "Pieczulis, Blazej"]
[Result "0-1"]
[ECO "D60"]
[WhiteElo "1312"]
[BlackElo "1608"]
[Annotator "NA"]
[PlyCount "158"]
[EventDate "2020.08.06"]
[EventType "swiss"]
[EventCountry "POL"]
[SourceTitle "playchess.com"]
[Source "ChessBase"]
[SourceQuality "1"]
[TimeControl "40/5400+30:1800+30"]

1. d4 {[%emt 0:00:00]} Nf6 {[%emt 0:00:00]} 2. c4 {[%emt 0:00:00]} e6 {[%emt 0:00:00]} 3. Nf3 {[%emt 0:00:38]} d5 {[%emt 0:00:54]} 4. Bg5 {[%emt 0:01:23]} Be7 {[%emt 0:00:16]} 5. e3 {[%emt 0:01:05]} O-O {[%emt 0:00:40]} 6. Nc3 {[%emt 0:01:25]} Nbd7 {[%emt 0:01:54]} 7. Bd3 {[%emt 0:01:08]} dxc4 {[%emt 0:04:36]} 8. Bxc4 {[%emt 0:00:43]} b6 {[%emt 0:01:22]} 9. O-O {[%emt 0:11:31]} Bb7 {[%emt 0:03:28]} 10. Re1 {[%emt 0:10:26]} Ne4 {[%emt 0:05:05]} 11. Nxe4 {[%emt 0:08:26]} Bxe4 {[%emt 0:00:07]} 12. Bf4 {[%emt 0:15:15]} c5 {[%emt 0:05:19]} 13. Nd2 {[%emt 0:09:11]} Bb7 {[%emt 0:02:51]} 14. Nb3 {[%emt 0:02:05]} Rc8 {[%emt 0:00:55]} 15. dxc5 {[%emt 0:05:33]} Nxc5 {[%emt 0:00:49]} 16. Qe2 {[%emt 0:03:08]} Bd5 {[%emt 0:07:08]} 17. Nxc5 {[%emt 0:06:46]} Rxc5 {[%emt 0:00:29]} 18. Bxd5 {[%emt 0:05:55]} Rxd5 {[%emt 0:00:50]} 19. Red1 {[%emt 0:00:40]} Bf6 {[%emt 0:01:48]} 20. e4 {[%emt 0:03:17]} Rxd1+ {[%emt 0:02:54]} 21. Rxd1 {[%emt 0:00:39]} Qc8 {[%emt 0:03:12]} 22. Rc1 {[%emt 0:07:40]} Qd7 {[%emt 0:00:30]} 23. Rd1 {[%emt 0:00:27]} Qa4 {[%emt 0:02:41]} 24. b3 {[%emt 0:00:09]} Qa5 {[%emt 0:01:21]} 25. Bd6 {[%emt 0:01:47]} Rc8 {[%emt 0:01:16]} 26. e5 {[%emt 0:00:55]} Bd8 {[%emt 0:01:09]} 27. Qb2 {[%emt 0:02:05]} Qb5 {[%emt 0:03:03]} 28. a4 {[%emt 0:01:02]} Qc6 {[%emt 0:00:34]} 29. Qd2 {[%emt 0:00:31]} h6 {[%emt 0:07:04]} 30. h3 {[%emt 0:00:31]} Bg5 {[%emt 0:01:51]} 31. Qd3 {[%emt 0:00:27]} Qc3 {[%emt 0:04:48]} 32. Qxc3 {[%emt 0:00:33]} Rxc3 {[%emt 0:00:05]} 33. Rb1 {[%emt 0:00:05]} Kh7 {[%emt 0:02:05]} 34. Bb8 {[%emt 0:00:30]} a6 {[%emt 0:00:04]} 35. Ba7 {[%emt 0:00:53]} b5 {[%emt 0:00:15]} 36. axb5 {[%emt 0:00:34]} axb5 {[%emt 0:00:06]} 37. Bb8 {[%emt 0:00:27]} Kg6 {[%emt 0:00:19]} 38. Bd6 {[%emt 0:00:36]} Kf5 {[%emt 0:04:32]} 39. g3 {[%emt 0:00:29]} h5 {[%emt 0:03:28]} 40. b4 {[%emt 0:00:00]} Rc1+ {[%emt 0:00:00]} 41. Rxc1 {[%emt 0:00:54]} Bxc1 {[%emt 0:02:27]} 42. f3 {[%emt 0:00:39]} Bb2 {[%emt 0:00:18]} 43. Kf2 {[%emt 0:04:23]} Bxe5 {[%emt 0:00:07]} 44. Bc5 {[%emt 0:00:09]} Bc3 {[%emt 0:04:39]} 45. Ke3 {[%emt 0:05:34]} Ke5 {[%emt 0:00:45]} 46. Bf8 {[%emt 0:02:53]} Kd5 {[%emt 0:00:31]} 47. Kd3 {[%emt 0:01:21]} Be1 {[%emt 0:01:44]} 48. g4 {[%emt 0:01:12]} g6 {[%emt 0:01:04]} 49. Bc5 {[%emt 0:02:28]} Ke5 {[%emt 0:05:12]} 50. Ke3 {[%emt 0:02:43]} Bg3 {[%emt 0:01:21]} 51. Bd4+ {[%emt 0:02:57]} Kd5 {[%emt 0:00:05]} 52. Kd3 {[%emt 0:00:18]} Bd6 {[%emt 0:00:07]} 53. Bc3 {[%emt 0:00:23]} e5 {[%emt 0:00:18]} 54. g5 {[%emt 0:03:19]} Be7 {[%emt 0:00:45]} 55. h4 {[%emt 0:03:16]} f6 {[%emt 0:00:49]} 56. gxf6 {[%emt 0:02:25]} Bxf6 {[%emt 0:00:17]} 57. Be1 {[%emt 0:00:07]} Be7 {[%emt 0:00:42]} 58. Ke3 {[%emt 0:01:21]} Kc4 {[%emt 0:00:26]} 59. Ke4 {[%emt 0:00:05]} Bxb4 {[%emt 0:00:05]} 60. Bf2 {[%emt 0:02:12]} Bd6 {[%emt 0:00:14]} 61. Be1 {[%emt 0:00:13]} b4 {[%emt 0:00:15]} 62. Bxb4 {[%emt 0:02:01]} Kxb4 {[%emt 0:00:38]} 63. Kd5 {[%emt 0:00:06]} Be7 {[%emt 0:00:03]} 64. Kxe5 {[%emt 0:00:17]} Bxh4 {[%emt 0:00:08]} 65. Ke4 {[%emt 0:00:14]} Bg3 {[%emt 0:00:09]} 66. Ke3 {[%emt 0:00:28]} Kc4 {[%emt 0:00:08]} 67. Ke2 {[%emt 0:00:12]} Kd4 {[%emt 0:00:07]} 68. Kf1 {[%emt 0:00:05]} Ke3 {[%emt 0:00:08]} 69. Kg2 {[%emt 0:00:03]} Be5 {[%emt 0:00:23]} 70. Kh3 {[%emt 0:00:40]} Kxf3 {[%emt 0:00:07]} 71. Kh4 {[%emt 0:00:15]} Bf6+ {[%emt 0:00:08]} 72. Kh3 {[%emt 0:00:10]} g5 {[%emt 0:00:04]} 73. Kh2 {[%emt 0:00:11]} g4 {[%emt 0:00:04]} 74. Kg1 {[%emt 0:00:28]} g3 {[%emt 0:00:13]} 75. Kh1 {[%emt 0:00:06]} g2+ {[%emt 0:00:03]} 76. Kh2 {[%emt 0:00:05]} Be5+ {[%emt 0:00:07]} 77. Kg1 {[%emt 0:00:23]} Bd4+ {[%emt 0:00:04]} 78. Kh2 {[%emt 0:00:03]} g1=Q+ {[%emt 0:00:06]} 79. Kh3 {[%emt 0:00:03]} Qg3# {[%emt 0:00:08]} 0-1

[Event "4th Memorial Warakomska-B 2020"]
[Site "Suwalki"]
[Date "2020.08.13"]
[Round "9.2"]
[White "Sapeta, Robert"]
[Black "Wierzbicki, Michal"]
[Result "0-1"]
[ECO "C13"]
[WhiteElo "1895"]
[BlackElo "1849"]
[Annotator "NA RC"]
[PlyCount "142"]
[EventDate "2020.08.06"]
[EventType "swiss"]
[EventCountry "POL"]
[SourceTitle "playchess.com"]
[Source "ChessBase"]
[SourceQuality "1"]
[TimeControl "40/5400+30:1800+30"]

{[%evp 13,142,14,12,-10,50,31,24,8,47,14,39,40,56,18,43,-3,0,-20,-7,-32,-9,-15,-13,0,0,0,0,0,8,0,0,0,15,0,0,0,0,-41,-36,-40,-40,-45,-61,-160,-118,-149,-131,-108,-21,-91,-86,-75,-39,-43,32767,32767,32767,32767,32767,32767,32767,32767,32767,32767,32767,32767,32767,32767,32767,-474,-155,-1311,-4133,-1793,-3438,-2145,-2487,-2247,-12839,-4627,-12841,-12843,-12844,-29964,-12844,-962,-4144,-1468,-5147,-12847,-1135,-12848,-1000,-1349,-687,-12843,-625,-1512,-12843,-959,-3933,-12845,-5065,-5072,-12846,-439,-5044,-5057,-12847,-5559,-5087,-6045,-12848,-5064,-29973,-12846,-1877,-12786,-5068,-12848,32767,-29980,-12849,-12850,-12850,-29986,-29987,-29988,-29989,-29989,-27999]} 1. d4 {[%emt 0:00:00]} Nf6 {[%emt 0:00:00]} 2. Nc3 {[%emt 0:00:00]} e6 {[%emt 0:03:08]} 3. e4 {[%emt 0:00:00]} d5 {[%emt 0:00:04]} 4. Bg5 {[%emt 0:00:01]} Be7 {[%emt 0:01:18]} 5. e5 {[%emt 0:00:13]} Nfd7 {[%emt 0:00:08]} 6. h4 {[%emt 0:00:36]} h6 {[%emt 0:02:53]} 7. Bxe7 {[%emt 0:00:48]} Qxe7 {[%emt 0:00:04]} 8. Qg4 {[%emt 0:00:18]} Kf8 {[%emt 0:02:40] C14: French: Classical System: 4 Bg5 Be7 main line.} 9. O-O-O {[%emt 0:00:59]} a6 {[%emt 0:04:42]} 10. f4 {[%emt 0:08:11] [#]} h5 $146 {[%emt 0:12:17]} ({Predecessor:} 10... c5 11. dxc5 Nc6 12. Rh3 Nxc5 13. Rg3 Rg8 14. Bd3 Nxd3+ 15. Rgxd3 b5 16. Nf3 b4 {1-0 (35) Kerek,K (2300)-Havasi,J (2229) Hungary 2011}) 11. Qg3 {[%emt 0:05:05]} g6 {[%emt 0:01:18]} 12. Nf3 {[%emt 0:05:18]} c5 {[%emt 0:00:25]} 13. dxc5 {[%emt 0:00:38]} Nc6 {[%emt 0:01:07]} 14. Bd3 {[%emt 0:09:20]} (14. Na4 $14) 14... Nxc5 {[%emt 0:01:48]} 15. Qg5 {[%emt 0:08:52]} b5 {[%emt 0:11:18]} 16. Qxe7+ {[%emt 0:18:16]} Kxe7 {[%emt 0:00:25]} 17. Ne2 {[%emt 0:00:26]} Bb7 {[%emt 0:04:30]} 18. Ned4 {[%emt 0:00:57]} Rac8 {[%emt 0:01:57]} 19. Nxc6+ {[%emt 0:00:18]} Bxc6 {[%emt 0:02:01]} 20. Nd4 {[%emt 0:02:09]} b4 {[%emt 0:02:19]} 21. b3 {[%emt 0:26:44]} Rc7 {[%emt 0:01:56]} 22. Kd2 {[%emt 0:01:00]} Rhc8 {[%emt 0:03:12]} 23. a3 {[%emt 0:02:51]} bxa3 {[%emt 0:02:24]} 24. Ra1 {[%emt 0:00:03] [#]} Bb5 $1 {[%emt 0:02:16]} 25. Rxa3 {[%emt 0:00:36]} Nxd3 {[%emt 0:00:54]} 26. cxd3 {[%emt 0:00:07]} Rc3 {[%emt 0:00:12]} 27. Rh3 $1 {[%emt 0:02:48]} Rc1 {[%emt 0:02:41]} 28. Nxb5 {[%emt 0:00:59]} (28. Ra5 $15) 28... axb5 {[%emt 0:01:01]} 29. Ra7+ {[%emt 0:00:04]} Ke8 {[%emt 0:00:49]} 30. Ke3 {[%emt 0:01:57]} R1c3 {[%emt 0:02:38]} (30... R8c2 $17 31. f5 exf5) 31. g4 {[%emt 0:00:23]} (31. Rh1 $1 $11 {keeps the balance.}) 31... hxg4 {[%emt 0:00:22]} 32. Rh1 {[%emt 0:01:37]} R8c7 {[%emt 0:03:30]} ({Of course not} 32... Rxb3 $6 33. h5 $11) ({Black should play} 32... Rc1 $17 33. Ra1 Rxa1 34. Rxa1 Rc3) 33. Rxc7 {[%emt 0:00:14]} Rxc7 {[%emt 0:00:03]} 34. Kd4 {[%emt 0:00:12]} b4 {[%emt 0:00:36]} 35. Rg1 {[%emt 0:02:01]} Rc3 {[%emt 0:00:09]} 36. Rxg4 {[%emt 0:00:08]} Rxb3 {[%emt 0:00:06]} 37. h5 {[%emt 0:00:16]} gxh5 {[%emt 0:00:04]} 38. Rg8+ {[%emt 0:00:36]} Ke7 {[%emt 0:00:06]} 39. Rh8 {[%emt 0:00:32]} Rb2 {[%emt 0:02:12]} 40. f5 {[%emt 0:00:00]} exf5 {[%emt 0:00:00]} 41. Rxh5 {[%emt 0:08:24]} Rf2 $2 {[%emt 0:01:58]} (41... f4 $19 42. Kxd5 f3) 42. Kxd5 $2 {[%emt 0:02:20]} (42. Rh6 $17) 42... b3 {[%emt 0:01:28]} 43. Rh8 {[%emt 0:00:26]} b2 {[%emt 0:02:12]} 44. Rb8 {[%emt 0:00:17]} Re2 {[%emt 0:00:11]} 45. Rb7+ {[%emt 0:13:51]} Kf8 {[%emt 0:00:29]} 46. d4 {[%emt 0:01:05]} f4 {[%emt 0:00:23]} 47. Kc4 {[%emt 0:00:16]} f3 {[%emt 0:00:52]} 48. Kd3 {[%emt 0:01:42]} Rc2 {[%emt 0:01:03] Promotion} 49. Kxc2 {[%emt 0:01:13]} f2 {[%emt 0:01:38]} 50. Rxb2 {[%emt 0:02:40]} f1=Q {[%emt 0:00:05]} 51. Kc3 {[%emt 0:01:50]} Qf3+ {[%emt 0:02:49]} 52. Kc4 {[%emt 0:00:15]} Qc6+ {[%emt 0:00:19]} 53. Kd3 {[%emt 0:00:21]} Ke7 {[%emt 0:00:15]} 54. Rf2 {[%emt 0:00:55]} Qb5+ {[%emt 0:04:23]} 55. Ke3 {[%emt 0:00:46]} Qb3+ {[%emt 0:01:20]} 56. Ke4 {[%emt 0:00:26]} Qb7+ {[%emt 0:00:26]} 57. Ke3 {[%emt 0:00:05]} Ke6 {[%emt 0:00:36]} 58. Rf6+ {[%emt 0:00:18]} Kd5 {[%emt 0:00:04]} 59. Rd6+ {[%emt 0:00:06]} Kc4 {[%emt 0:00:03]} 60. Kf4 {[%emt 0:00:33]} Kd3 {[%emt 0:01:02]} 61. Kf5 {[%emt 0:01:26]} Qf3+ {[%emt 0:00:14]} 62. Kg5 {[%emt 0:00:05]} Ke4 {[%emt 0:00:44]} 63. Kh6 {[%emt 0:00:11]} f5 {[%emt 0:03:00]} 64. Kg6 {[%emt 0:03:06]} Qg3+ {[%emt 0:01:44]} 65. Kf7 {[%emt 0:00:45]} Qh2 {[%emt 0:02:29]} 66. Rg6 {[%emt 0:01:11]} f4 {[%emt 0:01:33]} 67. e6 {[%emt 0:00:40]} Qh7+ {[%emt 0:01:04]} 68. Kf6 {[%emt 0:00:56]} Qh8+ {[%emt 0:02:51]} 69. Kf7 {[%emt 0:00:14]} Kf5 {[%emt 0:00:41]} 70. Rg7 {[%emt 0:02:19] [#]} Qxg7+ {[%emt 0:00:17] Promotion} 71. Kxg7 {[%emt 0:00:05]} Kxe6 {[%emt 0:00:02]} 0-1

[Event "4th Memorial Warakomska-B 2020"]
[Site "Suwalki"]
[Date "2020.08.13"]
[Round "9.4"]
[White "Milewski, Karol"]
[Black "Widelski, Kacper"]
[Result "0-1"]
[ECO "B33"]
[WhiteElo "1795"]
[BlackElo "1879"]
[Annotator "NA RC"]
[PlyCount "106"]
[EventDate "2020.08.06"]
[EventType "swiss"]
[EventCountry "POL"]
[SourceTitle "playchess.com"]
[Source "ChessBase"]
[SourceQuality "1"]
[TimeControl "40/5400+30:1800+30"]

{[%evp 8,106,20,16,38,29,23,56,38,44,47,30,24,27,35,27,8,0,0,0,16,0,6,-29,-27,-33,-25,-31,-29,-30,8,-57,7,4,0,-30,0,-20,6,0,37,0,31,-10,49,6,47,27,34,41,43,0,216,231,234,233,248,265,231,211,32767,32767,32767,32767,32767,32767,32767,32767,32767,32767,32767,32767,32767,32767,32767,164,209,451,496,474,666,-1662,-4496,-1289,-1588,-5043,-29969,-5920,-29976,-5912,-5957,-29978,-29977,-29980,-12825,-29976,-29980,-29979,-29981,-29982,-12843]} 1. e4 {[%emt 0:00:00]} c5 {[%emt 0:01:10]} 2. Nf3 {[%emt 0:00:44]} Nc6 {[%emt 0:01:27]} 3. d4 {[%emt 0:03:46]} cxd4 {[%emt 0:00:12]} 4. Nxd4 {[%emt 0:01:30]} Nf6 {[%emt 0:04:33]} 5. Nc3 {[%emt 0:03:01]} e5 {[%emt 0:03:30]} 6. Ndb5 {[%emt 0:10:01]} d6 {[%emt 0:00:30]} 7. Bg5 {[%emt 0:04:38]} a6 {[%emt 0:03:04]} 8. Na3 {[%emt 0:08:04]} b5 {[%emt 0:05:38]} 9. Nd5 {[%emt 0:06:57]} Be7 {[%emt 0:01:27]} 10. Bxf6 {[%emt 0:01:53]} Bxf6 {[%emt 0:00:59]} 11. c3 {[%emt 0:02:09]} O-O {[%emt 0:05:06]} 12. Be2 {[%emt 0:07:23]} Bg5 {[%emt 0:08:28]} 13. O-O {[%emt 0:02:44]} Be6 {[%emt 0:05:04] is the new trend.} 14. Nc2 {[%emt 0:04:30]} Ne7 {[%emt 0:07:15] B33: Sicilian: Pelikan and Sveshnikov Variations.} 15. Ncb4 {[%emt 0:07:18]} a5 {[%emt 0:06:42]} 16. Nxe7+ $1 {[%emt 0:05:24]} Qxe7 {[%emt 0:00:47]} 17. Nd5 {[%emt 0:01:34]} Qb7 {[%emt 0:02:45]} 18. Qd3 {[%emt 0:08:38]} Rab8 {[%emt 0:06:15] [#]} 19. g3 $146 {[%emt 0:16:09]} (19. Rad1 $11) ({Predecessor:} 19. Rfd1 Rfc8 20. Qg3 h6 21. h4 Bd8 22. Bg4 Rc5 23. Ne3 Qxe4 24. Rxd6 Bxg4 25. Nxg4 {1-0 (71) Navara,D (2722)-Moiseenko,A (2715) Khanty-Mansiysk 2011}) 19... Bd8 {[%emt 0:15:41]} (19... f5 $15 20. f3 b4) 20. Rad1 {[%emt 0:02:26]} g6 {[%emt 0:02:26]} 21. Bf3 {[%emt 0:00:59]} Kh8 {[%emt 0:02:46]} 22. Bg2 {[%emt 0:00:24]} Qa7 {[%emt 0:04:02]} 23. Kh1 {[%emt 0:00:30]} f5 {[%emt 0:01:38]} 24. f4 {[%emt 0:00:33]} Qc5 {[%emt 0:04:12]} 25. Rd2 {[%emt 0:00:41]} Rb7 {[%emt 0:02:12]} 26. Re1 {[%emt 0:00:29]} (26. exf5 $14 Bxf5 27. Qe2) 26... Rbf7 {[%emt 0:01:22]} 27. b4 {[%emt 0:00:28]} axb4 {[%emt 0:01:25]} 28. cxb4 {[%emt 0:00:14]} Qc6 {[%emt 0:00:21]} 29. Nc3 {[%emt 0:00:47]} Bd7 $2 {[%emt 0:01:38]} (29... Bc4 $11 30. exf5 (30. Qxd6 Qxd6 31. Rxd6 exf4 $15) 30... Qb6 31. Qxd6 Qxd6 32. Rxd6 Be7 33. fxg6 Bxd6 34. gxf7 Bxb4) 30. exf5 {[%emt 0:00:30]} Qc8 {[%emt 0:00:44]} 31. fxg6 {[%emt 0:00:29]} hxg6 {[%emt 0:00:20]} 32. Ne4 {[%emt 0:00:33]} ({But not} 32. Nxb5 $6 Bxb5 33. Qxb5 exf4 $18) 32... Bf5 {[%emt 0:01:04]} 33. Qxd6 {[%emt 0:00:27]} Bc7 {[%emt 0:00:20]} 34. Qd3 {[%emt 0:00:31]} exf4 {[%emt 0:00:21]} 35. Qc3+ {[%emt 0:00:29]} Kg8 {[%emt 0:00:09]} 36. Ng5 {[%emt 0:00:30]} Rg7 {[%emt 0:00:41]} 37. Bd5+ {[%emt 0:00:18]} Kh8 {[%emt 0:00:29]} 38. Re7 Rfg8 {[%emt 0:01:26]} 39. Qd4 {[%emt 0:01:12]} Bd8 {[%emt 0:00:24]} 40. Rxg7 {[%emt 0:00:00]} Rxg7 {[%emt 0:00:00]} 41. Nf7+ {[%emt 0:03:10]} ({Don't take} 41. gxf4 $6 Bf6) 41... Kh7 {[%emt 0:00:38]} 42. Qxf4 {[%emt 0:01:39]} g5 $2 {[%emt 0:01:27] [#]} (42... Rxf7 43. Bxf7 Kg7) 43. Qf3 $1 {[%emt 0:05:01]} Bg6 {[%emt 0:05:06]} 44. Be4 $4 {[%emt 0:04:37]} (44. g4 $18 Bxf7 45. Bxf7) 44... Qc1+ {[%emt 0:02:13] Double Attack} 45. Rd1 {[%emt 0:01:26] [#]} Qxd1+ $3 {[%emt 0:00:15]} 46. Qxd1 {[%emt 0:00:26]} Bxe4+ {[%emt 0:00:09]} 47. Kg1 {[%emt 0:00:46]} Bb6+ {[%emt 0:00:10]} 48. Kf1 {[%emt 0:00:08]} Rxf7+ {[%emt 0:00:06]} 49. Ke1 {[%emt 0:00:13]} Bf2+ {[%emt 0:00:19]} 50. Kf1 {[%emt 0:00:34]} Bd4+ {[%emt 0:00:45]} 51. Ke1 {[%emt 0:00:14]} Bc3+ {[%emt 0:00:07] Double Attack} 52. Ke2 {[%emt 0:00:05]} Bf3+ {[%emt 0:00:09] Skewer} 53. Ke3 {[%emt 0:00:06]} Bxd1 {[%emt 0:00:11]} 0-1

[Event "4th Memorial Warakomska-B 2020"]
[Site "Suwalki"]
[Date "2020.08.13"]
[Round "9.5"]
[White "Cwiek, Ryszard"]
[Black "Wolagiewicz, Kinga"]
[Result "1/2-1/2"]
[ECO "B13"]
[WhiteElo "1867"]
[BlackElo "1719"]
[Annotator "NA RC"]
[PlyCount "88"]
[EventDate "2020.08.06"]
[EventType "swiss"]
[EventCountry "POL"]
[SourceTitle "playchess.com"]
[Source "ChessBase"]
[SourceQuality "1"]
[TimeControl "40/5400+30:1800+30"]

{[%evp 8,88,20,25,34,37,19,30,25,32,39,31,29,25,39,32,24,39,29,6,8,14,10,5,10,8,19,0,0,0,29,32,75,0,1,0,63,52,79,85,101,104,122,108,129,75,118,97,89,73,99,91,94,92,97,102,101,102,106,97,99,95,91,97,91,77,89,72,94,0,79,0,94,33,61,24,17,0,0,0,0,-8,0]} 1. e4 {[%emt 0:00:00]} c6 {[%emt 0:00:00]} 2. d4 {[%emt 0:00:00]} d5 {[%emt 0:00:00]} 3. exd5 {[%emt 0:00:00]} cxd5 {[%emt 0:00:00]} 4. Bd3 {[%emt 0:00:00]} Nc6 {[%emt 0:00:02]} 5. c3 {[%emt 0:00:00]} Nf6 {[%emt 0:00:29]} 6. Bf4 {[%emt 0:00:34]} Bg4 {[%emt 0:00:43]} 7. Qb3 {[%emt 0:00:08]} Qc8 {[%emt 0:00:21]} 8. Nd2 {[%emt 0:01:20]} e6 {[%emt 0:00:37]} 9. Ngf3 {[%emt 0:01:46]} Be7 {[%emt 0:00:51]} 10. O-O {[%emt 0:00:42]} O-O {[%emt 0:00:51]} 11. Rfe1 {[%emt 0:02:49]} a6 {[%emt 0:01:37]} 12. Ne5 {[%emt 0:08:06] B13: Caro-Kann: Exchange Variation and Panov-Botvinnik Attack.} Bh5 {[%emt 0:00:54]} 13. a4 {[%emt 0:05:54]} Nxe5 {[%emt 0:06:36]} 14. Bxe5 {[%emt 0:01:11]} Nd7 {[%emt 0:01:02]} 15. Bg3 {[%emt 0:01:56] [#]} Qc6 $146 {[%emt 0:03:12]} ({Predecessor:} 15... Re8 16. h3 Nf8 17. c4 Bg5 18. Nf1 dxc4 19. Bxc4 Nd7 20. Ne3 Ra7 21. Rac1 Qd8 {0-1 (87) Tang,A (2538)-Holt,C (2549) chess.com INT 2020}) 16. Rac1 {[%emt 0:12:05]} Bg6 {[%emt 0:10:41]} 17. Bxg6 {[%emt 0:28:30]} hxg6 {[%emt 0:00:09]} 18. c4 {[%emt 0:02:06]} Nf6 {[%emt 0:09:46]} (18... Bg5 $5 {[%cal Rg5d2]} 19. cxd5 Qxd5 20. Qxd5 exd5 $11) 19. c5 {[%emt 0:03:42]} Rac8 {[%emt 0:06:44]} 20. Qa2 {[%emt 0:04:23]} ({White should try} 20. Nf3 $16) 20... a5 {[%emt 0:10:22]} 21. Qb3 {[%emt 0:03:03]} Qa6 {[%emt 0:09:38]} (21... Nd7 $11) 22. Qb5 {[%emt 0:01:27]} Rc6 {[%emt 0:03:12]} 23. Rc3 {[%emt 0:01:32]} Nh5 {[%emt 0:03:56]} 24. Rb3 {[%emt 0:03:12]} Nxg3 {[%emt 0:00:40]} 25. hxg3 {[%emt 0:00:08]} Rb8 {[%emt 0:00:39]} 26. Nf3 {[%emt 0:02:20]} ({White should try} 26. f4) 26... Bf6 {[%emt 0:02:53]} 27. Qxa6 Rxa6 {[%emt 0:00:07]} 28. Rb5 {[%emt 0:04:19]} Ra7 {[%emt 0:07:52]} 29. Re3 {[%emt 0:04:53]} Rc8 {[%emt 0:00:33]} 30. Reb3 {[%emt 0:01:51]} Rc7 {[%emt 0:00:23]} 31. Kf1 {[%emt 0:01:47]} Kf8 {[%emt 0:00:42]} 32. Re3 {[%emt 0:00:46]} Rc6 {[%emt 0:01:50]} 33. Ke2 {[%emt 0:00:36]} Ke8 {[%emt 0:06:53]} 34. Kd2 {[%emt 0:00:32]} Kd7 {[%emt 0:03:15]} 35. Reb3 {[%emt 0:02:19]} Rc7 {[%emt 0:01:17]} 36. Rb6 {[%emt 0:01:58]} Kc8 {[%emt 0:02:05]} 37. Re3 {[%emt 0:00:12]} Kd7 {[%emt 0:05:03]} 38. Reb3 {[%emt 0:01:09]} Kc8 $1 {[%emt 0:00:11]} 39. Re3 {[%emt 0:00:08]} (39. Ke3 $16) 39... Kd7 $1 {[%emt 0:00:19]} 40. Kd3 {[%emt 0:00:00]} (40. g4 $16) 40... Rc6 {[%emt 0:00:00] [#]} 41. Rxc6 {[%emt 0:04:26]} ({White should try} 41. Rb5 $1 $16) 41... Kxc6 {[%emt 0:02:40]} 42. Kd2 {[%emt 0:01:25]} b6 {[%emt 0:05:11]} 43. cxb6 {[%emt 0:02:14]} Kxb6 {[%emt 0:00:44]} 44. Rb3+ {[%emt 0:00:54]} Kc6 $11 {[%emt 0:00:46]} 1/2-1/2